[Event "*** SCC Grand Prix: Titled Tuesday Blitz"]
[Site "Chess.com"]
[Date "2020.09.29"]
[Round "7"]
[White "MikeSailer"]
[Black "Sueetin"]
[Result "0-1"]
[WhiteElo "2075"]
[BlackElo "2284"]
[TimeControl "180+1"]
[EndTime "11:15:49 PDT"]
[Termination "Sueetin won on time"]

1. d4 {[%clk 0:03:00.3]} 1... Nf6 {[%clk 0:02:59.7]} 2. Bf4 {[%clk 0:02:59.4]}
2... d5 {[%clk 0:02:58]} 3. e3 {[%clk 0:03:00]} 3... c5 {[%clk 0:02:57.5]} 4.
Nf3 {[%clk 0:02:59.8]} 4... Nc6 {[%clk 0:02:55.9]} 5. Nc3 {[%clk 0:02:59.8]}
5... a6 {[%clk 0:02:54.2]} 6. dxc5 {[%clk 0:02:46.5]} 6... g6 {[%clk 0:02:48.4]}
7. Be2 {[%clk 0:02:37.8]} 7... Bg7 {[%clk 0:02:48]} 8. O-O {[%clk 0:02:37.2]}
8... O-O {[%clk 0:02:39]} 9. Na4 {[%clk 0:02:22.5]} 9... Nh5 {[%clk 0:02:31.5]}
10. c3 {[%clk 0:02:11.4]} 10... Nxf4 {[%clk 0:02:30.1]} 11. exf4 {[%clk
0:02:11.7]} 11... Rb8 {[%clk 0:02:18.3]} 12. Nd4 {[%clk 0:01:57.3]} 12... Qc7
{[%clk 0:02:06.3]} 13. g3 {[%clk 0:01:51.7]} 13... Bh3 {[%clk 0:02:04.3]} 14.
Re1 {[%clk 0:01:51.7]} 14... Nd8 {[%clk 0:01:40.5]} 15. Bf3 {[%clk 0:01:44.3]}
15... Ne6 {[%clk 0:01:19.2]} 16. b4 {[%clk 0:01:22.7]} 16... Nxd4 {[%clk
0:00:53.9]} 17. cxd4 {[%clk 0:01:20.5]} 17... e6 {[%clk 0:00:53.1]} 18. Nb6
{[%clk 0:01:12.4]} 18... h5 {[%clk 0:00:51.2]} 19. Re3 {[%clk 0:01:02.3]} 19...
Rbd8 {[%clk 0:00:40]} 20. a4 {[%clk 0:01:00.5]} 20... Bf6 {[%clk 0:00:36.3]} 21.
b5 {[%clk 0:00:43]} 21... axb5 {[%clk 0:00:32]} 22. axb5 {[%clk 0:00:43.4]}
22... h4 {[%clk 0:00:32.6]} 23. Rea3 {[%clk 0:00:24.4]} 23... Kg7 {[%clk
0:00:32.2]} 24. Ra8 {[%clk 0:00:21.6]} 24... Rxa8 {[%clk 0:00:19.2]} 25. Rxa8
{[%clk 0:00:21.5]} 25... Rxa8 {[%clk 0:00:18.5]} 26. Nxa8 {[%clk 0:00:21.9]}
26... Qa5 {[%clk 0:00:19.4]} 27. Nb6 {[%clk 0:00:13.9]} 27... Qxb5 {[%clk
0:00:19.5]} 28. g4 {[%clk 0:00:04.4]} 28... Kg8 {[%clk 0:00:19.1]} 29. Be2
{[%clk 0:00:03.5]} 29... Qb2 {[%clk 0:00:17.5]} 30. Nd7 {[%clk 0:00:01.7]} 30...
Bxd4 {[%clk 0:00:17.1]} 31. Nf6+ {[%clk 0:00:01.5]} 31... Bxf6 {[%clk
0:00:16.6]} 32. g5 {[%clk 0:00:01.5]} 32... Bd4 {[%clk 0:00:16.4]} 0-1

[Event "*** SCC Grand Prix: Titled Tuesday Blitz"]
[Site "Chess.com"]
[Date "2020.09.29"]
[Round "7"]
[White "Iskusnyh"]
[Black "Srisshhhtea"]
[Result "1-0"]
[WhiteElo "2552"]
[BlackElo "2303"]
[TimeControl "180+1"]
[EndTime "11:15:51 PDT"]
[Termination "Iskusnyh won by checkmate"]

1. d4 {[%clk 0:03:00.9]} 1... Nf6 {[%clk 0:02:56.3]} 2. c4 {[%clk 0:03:01.1]}
2... g6 {[%clk 0:02:54.3]} 3. g3 {[%clk 0:03:00.3]} 3... Bg7 {[%clk 0:02:54.7]}
4. Bg2 {[%clk 0:03:00.8]} 4... O-O {[%clk 0:02:55.6]} 5. Nc3 {[%clk 0:03:00.3]}
5... d6 {[%clk 0:02:56]} 6. Nf3 {[%clk 0:03:00.8]} 6... Nbd7 {[%clk 0:02:56.3]}
7. O-O {[%clk 0:03:00.7]} 7... e5 {[%clk 0:02:56.9]} 8. e4 {[%clk 0:03:01.2]}
8... Re8 {[%clk 0:02:57.3]} 9. h3 {[%clk 0:02:58.2]} 9... exd4 {[%clk
0:02:57.4]} 10. Nxd4 {[%clk 0:02:57.5]} 10... Nc5 {[%clk 0:02:58.3]} 11. Re1
{[%clk 0:02:55]} 11... Bd7 {[%clk 0:02:58.6]} 12. Rb1 {[%clk 0:02:52.7]} 12...
h6 {[%clk 0:02:55.1]} 13. f3 {[%clk 0:02:47.9]} 13... c6 {[%clk 0:02:45.8]} 14.
Be3 {[%clk 0:02:43.1]} 14... a5 {[%clk 0:02:45.3]} 15. Qd2 {[%clk 0:02:40.7]}
15... h5 {[%clk 0:02:42.8]} 16. Bf2 {[%clk 0:02:36.9]} 16... a4 {[%clk
0:02:41.8]} 17. b4 {[%clk 0:02:35.6]} 17... axb3 {[%clk 0:02:41.5]} 18. axb3
{[%clk 0:02:35.6]} 18... Qc7 {[%clk 0:02:29.2]} 19. Red1 {[%clk 0:02:28.4]}
19... Red8 {[%clk 0:02:06.6]} 20. b4 {[%clk 0:02:24.8]} 20... Ne6 {[%clk
0:02:06.4]} 21. Nde2 {[%clk 0:02:19.4]} 21... Be8 {[%clk 0:02:02.3]} 22. Rdc1
{[%clk 0:02:06.5]} 22... Qe7 {[%clk 0:01:57.5]} 23. Bb6 {[%clk 0:02:01.8]} 23...
Rd7 {[%clk 0:01:55.6]} 24. Re1 {[%clk 0:02:00.3]} 24... h4 {[%clk 0:01:44.2]}
25. g4 {[%clk 0:01:58.1]} 25... Nh7 {[%clk 0:01:43.7]} 26. f4 {[%clk 0:01:50.6]}
26... g5 {[%clk 0:01:29.9]} 27. f5 {[%clk 0:01:48.2]} 27... Nf4 {[%clk
0:01:30.1]} 28. Nxf4 {[%clk 0:01:27.6]} 28... gxf4 {[%clk 0:01:31]} 29. Ne2
{[%clk 0:01:16]} 29... Bh6 {[%clk 0:00:58.9]} 30. Nxf4 {[%clk 0:01:10.9]} 30...
Ra3 {[%clk 0:00:54.1]} 31. Qf2 {[%clk 0:01:02.8]} 31... Ng5 {[%clk 0:00:37.6]}
32. Bd4 {[%clk 0:00:59.2]} 32... Rg3 {[%clk 0:00:24.8]} 33. Kh2 {[%clk
0:00:52.6]} 33... c5 {[%clk 0:00:10.4]} 34. Nd5 {[%clk 0:00:47.5]} 34... cxd4
{[%clk 0:00:08.4]} 35. Nxe7+ {[%clk 0:00:46.5]} 35... Rxe7 {[%clk 0:00:09.3]}
36. Qxd4 {[%clk 0:00:41.5]} 36... Bc6 {[%clk 0:00:09.7]} 37. Ra1 {[%clk
0:00:40]} 37... Rxg2+ {[%clk 0:00:05.1]} 38. Kxg2 {[%clk 0:00:38.2]} 38... Bxe4+
{[%clk 0:00:05.5]} 39. Rxe4 {[%clk 0:00:36.2]} 39... Nxe4 {[%clk 0:00:02.2]} 40.
Ra8+ {[%clk 0:00:35.8]} 40... Bf8 {[%clk 0:00:02.4]} 41. Rxf8+ {[%clk
0:00:35.2]} 41... Kxf8 {[%clk 0:00:02.3]} 42. Qh8# {[%clk 0:00:34.9]} 1-0

[Event "*** SCC Grand Prix: Titled Tuesday Blitz"]
[Site "Chess.com"]
[Date "2020.09.29"]
[Round "7"]
[White "fighter2jz"]
[Black "r31415"]
[Result "1-0"]
[WhiteElo "2650"]
[BlackElo "2471"]
[TimeControl "180+1"]
[EndTime "11:15:52 PDT"]
[Termination "fighter2jz won by checkmate"]

1. e4 {[%clk 0:03:00.9]} 1... e5 {[%clk 0:02:59.7]} 2. Nf3 {[%clk 0:02:40.2]}
2... Nc6 {[%clk 0:02:58.1]} 3. Bc4 {[%clk 0:02:40]} 3... Bc5 {[%clk 0:02:57.7]}
4. b4 {[%clk 0:02:38.4]} 4... Bxb4 {[%clk 0:02:57]} 5. c3 {[%clk 0:02:38.1]}
5... Bd6 {[%clk 0:02:57.4]} 6. d4 {[%clk 0:02:34.2]} 6... Nf6 {[%clk 0:02:57.8]}
7. O-O {[%clk 0:02:31.5]} 7... O-O {[%clk 0:02:58.3]} 8. Bg5 {[%clk 0:02:27.5]}
8... h6 {[%clk 0:02:57.6]} 9. Bh4 {[%clk 0:02:26.2]} 9... b6 {[%clk 0:02:34.4]}
10. dxe5 {[%clk 0:02:01]} 10... Nxe5 {[%clk 0:02:33.7]} 11. Nxe5 {[%clk
0:02:00.5]} 11... Bxe5 {[%clk 0:02:34.6]} 12. f4 {[%clk 0:02:00.8]} 12... Bxf4
{[%clk 0:01:52.2]} 13. Rxf4 {[%clk 0:01:58.4]} 13... g5 {[%clk 0:01:52.5]} 14.
e5 {[%clk 0:01:58.2]} 14... Qe7 {[%clk 0:01:26.5]} 15. exf6 {[%clk 0:00:45.6]}
15... Qe3+ {[%clk 0:01:15.6]} 16. Rf2 {[%clk 0:00:45.2]} 16... gxh4 {[%clk
0:01:10.2]} 17. Nd2 {[%clk 0:00:43.6]} 17... Bb7 {[%clk 0:00:58]} 18. Qh5 {[%clk
0:00:42.5]} 18... Qg5 {[%clk 0:00:57.4]} 19. Qxg5+ {[%clk 0:00:41.8]} 19... hxg5
{[%clk 0:00:57.5]} 20. Rf5 {[%clk 0:00:42.5]} 20... d5 {[%clk 0:00:49.1]} 21.
Rxg5+ {[%clk 0:00:42]} 21... Kh7 {[%clk 0:00:48.7]} 22. Bd3+ {[%clk 0:00:40.2]}
22... Kh6 {[%clk 0:00:48.4]} 23. Rg4 {[%clk 0:00:40.4]} 23... Kh5 {[%clk
0:00:46.9]} 24. h3 {[%clk 0:00:36.7]} 24... Rg8 {[%clk 0:00:44.8]} 25. Be2
{[%clk 0:00:33.6]} 25... Rxg4 {[%clk 0:00:43.5]} 26. Bxg4+ {[%clk 0:00:34.5]}
26... Kg5 {[%clk 0:00:44.1]} 27. Rf1 {[%clk 0:00:34.9]} 27... Rd8 {[%clk
0:00:38.6]} 28. Rf5+ {[%clk 0:00:34.8]} 28... Kg6 {[%clk 0:00:38.4]} 29. Nf3
{[%clk 0:00:35.7]} 29... d4 {[%clk 0:00:38.1]} 30. Ne5+ {[%clk 0:00:34]} 30...
Kh7 {[%clk 0:00:36]} 31. Rg5 {[%clk 0:00:28.8]} 31... Bd5 {[%clk 0:00:29.5]} 32.
Bf5+ {[%clk 0:00:28.9]} 32... Kh6 {[%clk 0:00:28.2]} 33. Rg7 {[%clk 0:00:23.2]}
33... dxc3 {[%clk 0:00:26.1]} 34. Ng4+ {[%clk 0:00:12.2]} 34... Kh5 {[%clk
0:00:23.1]} 35. Ne3 {[%clk 0:00:12.4]} 35... Bxa2 {[%clk 0:00:17.6]} 36. Kf2
{[%clk 0:00:12.7]} 36... Rd6 {[%clk 0:00:08.5]} 37. Bg4+ {[%clk 0:00:12.7]}
37... Kh6 {[%clk 0:00:04.3]} 38. Nf5# {[%clk 0:00:13.6]} 1-0

[Event "*** SCC Grand Prix: Titled Tuesday Blitz"]
[Site "Chess.com"]
[Date "2020.09.29"]
[Round "7"]
[White "sjam6687"]
[Black "Bulldog167"]
[Result "0-1"]
[WhiteElo "2516"]
[BlackElo "2792"]
[TimeControl "180+1"]
[EndTime "11:15:52 PDT"]
[Termination "Bulldog167 won by resignation"]

1. d4 {[%clk 0:03:00.9]} 1... Nf6 {[%clk 0:02:58.2]} 2. c4 {[%clk 0:03:01.3]}
2... g6 {[%clk 0:02:58.4]} 3. Nc3 {[%clk 0:03:01.5]} 3... d5 {[%clk 0:02:58.8]}
4. cxd5 {[%clk 0:03:01.1]} 4... Nxd5 {[%clk 0:02:59.7]} 5. e4 {[%clk 0:03:01.6]}
5... Nxc3 {[%clk 0:03:00.4]} 6. bxc3 {[%clk 0:03:02.5]} 6... Bg7 {[%clk
0:03:00.1]} 7. Bc4 {[%clk 0:03:03]} 7... c5 {[%clk 0:02:59]} 8. Ne2 {[%clk
0:03:03.2]} 8... Nc6 {[%clk 0:02:58.5]} 9. Be3 {[%clk 0:03:02.3]} 9... O-O
{[%clk 0:02:58.9]} 10. O-O {[%clk 0:03:02.7]} 10... Qc7 {[%clk 0:02:50.1]} 11.
Rc1 {[%clk 0:02:51.6]} 11... b6 {[%clk 0:02:44.7]} 12. Qd2 {[%clk 0:02:38.6]}
12... Rd8 {[%clk 0:02:44]} 13. Rfd1 {[%clk 0:02:26.1]} 13... e5 {[%clk
0:02:43.4]} 14. Bg5 {[%clk 0:02:03.5]} 14... Rd6 {[%clk 0:02:27.1]} 15. Bd5
{[%clk 0:01:48.7]} 15... Be6 {[%clk 0:01:39.1]} 16. Bxc6 {[%clk 0:01:48.2]}
16... Qxc6 {[%clk 0:01:36.5]} 17. d5 {[%clk 0:01:48.6]} 17... Qa4 {[%clk
0:01:28.3]} 18. c4 {[%clk 0:01:32.2]} 18... Bc8 {[%clk 0:01:22.4]} 19. Be7
{[%clk 0:01:02]} 19... Rd7 {[%clk 0:01:22.1]} 20. d6 {[%clk 0:01:02.4]} 20...
Bb7 {[%clk 0:01:18.2]} 21. f3 {[%clk 0:01:02.3]} 21... Bf8 {[%clk 0:01:14.8]}
22. Nc3 {[%clk 0:01:00.6]} 22... Qa5 {[%clk 0:01:03.9]} 23. Nd5 {[%clk
0:00:51.2]} 23... Qxd2 {[%clk 0:00:58.7]} 24. Rxd2 {[%clk 0:00:18]} 24... Bxd5
{[%clk 0:00:56.7]} 25. Bxf8 {[%clk 0:00:15.9]} 25... Kxf8 {[%clk 0:00:37.5]} 26.
Rxd5 {[%clk 0:00:15.1]} 26... f6 {[%clk 0:00:37.2]} 27. g3 {[%clk 0:00:13.1]}
27... Rad8 {[%clk 0:00:37.6]} 28. Rcd1 {[%clk 0:00:13.3]} 28... Kf7 {[%clk
0:00:38.3]} 29. f4 {[%clk 0:00:13.6]} 29... Ke6 {[%clk 0:00:38.9]} 30. fxe5
{[%clk 0:00:07.5]} 30... fxe5 {[%clk 0:00:39.8]} 31. Rf1 {[%clk 0:00:06.2]}
31... Rxd6 {[%clk 0:00:39.2]} 32. Kg2 {[%clk 0:00:06.1]} 32... Rxd5 {[%clk
0:00:37]} 33. exd5+ {[%clk 0:00:05.4]} 33... Ke7 {[%clk 0:00:37.3]} 34. a4
{[%clk 0:00:03.6]} 34... a6 {[%clk 0:00:33.6]} 35. Kf3 {[%clk 0:00:02.3]} 35...
Rf8+ {[%clk 0:00:29.6]} 36. Ke2 {[%clk 0:00:02.7]} 36... Rxf1 {[%clk 0:00:30.5]}
37. Kxf1 {[%clk 0:00:03.6]} 37... Kd6 {[%clk 0:00:31]} 38. Ke2 {[%clk 0:00:04]}
38... b5 {[%clk 0:00:31.3]} 39. cxb5 {[%clk 0:00:03.8]} 39... axb5 {[%clk
0:00:31.5]} 40. axb5 {[%clk 0:00:03.8]} 40... Kxd5 {[%clk 0:00:31.9]} 41. Ke3
{[%clk 0:00:03.1]} 41... c4 {[%clk 0:00:32.2]} 0-1

[Event "*** SCC Grand Prix: Titled Tuesday Blitz"]
[Site "Chess.com"]
[Date "2020.09.29"]
[Round "7"]
[White "RaphCamora"]
[Black "jacky72"]
[Result "1-0"]
[WhiteElo "2417"]
[BlackElo "2578"]
[TimeControl "180+1"]
[EndTime "11:15:54 PDT"]
[Termination "RaphCamora won by checkmate"]

1. Nf3 {[%clk 0:03:00.9]} 1... Nf6 {[%clk 0:02:59.6]} 2. g3 {[%clk 0:02:59.8]}
2... g6 {[%clk 0:02:59.6]} 3. Bg2 {[%clk 0:02:59.3]} 3... Bg7 {[%clk 0:03:00.5]}
4. O-O {[%clk 0:02:56.4]} 4... O-O {[%clk 0:03:01.4]} 5. d4 {[%clk 0:02:55.2]}
5... d6 {[%clk 0:03:02.3]} 6. c4 {[%clk 0:02:54.3]} 6... Nc6 {[%clk 0:03:02.7]}
7. Nc3 {[%clk 0:02:53.7]} 7... Bf5 {[%clk 0:03:03.1]} 8. Bf4 {[%clk 0:02:16.7]}
8... Ne4 {[%clk 0:03:02.6]} 9. Nxe4 {[%clk 0:02:09.8]} 9... Bxe4 {[%clk
0:03:03.5]} 10. d5 {[%clk 0:02:02.7]} 10... Na5 {[%clk 0:02:57.8]} 11. b3 {[%clk
0:01:52.7]} 11... c5 {[%clk 0:02:53.3]} 12. Bh3 {[%clk 0:01:44.8]} 12... Bxf3
{[%clk 0:02:36.8]} 13. exf3 {[%clk 0:01:43.5]} 13... a6 {[%clk 0:02:35.5]} 14.
Rc1 {[%clk 0:01:30.7]} 14... b5 {[%clk 0:02:34.7]} 15. Qe2 {[%clk 0:01:23.7]}
15... Rb8 {[%clk 0:02:30.1]} 16. Bd2 {[%clk 0:00:57.8]} 16... bxc4 {[%clk
0:02:11.8]} 17. Bxa5 {[%clk 0:00:57.1]} 17... Qxa5 {[%clk 0:02:11.3]} 18. Rxc4
{[%clk 0:00:58]} 18... Rfe8 {[%clk 0:02:05.5]} 19. f4 {[%clk 0:00:52.4]} 19...
Rb4 {[%clk 0:01:58.2]} 20. Rxb4 {[%clk 0:00:41.4]} 20... cxb4 {[%clk 0:01:59.1]}
21. Bd7 {[%clk 0:00:38.4]} 21... Rb8 {[%clk 0:01:53.8]} 22. Rc1 {[%clk
0:00:25.3]} 22... Bf6 {[%clk 0:01:48.3]} 23. Qc4 {[%clk 0:00:21.5]} 23... Qxa2
{[%clk 0:01:47.1]} 24. f5 {[%clk 0:00:20.1]} 24... Kg7 {[%clk 0:01:41.2]} 25.
fxg6 {[%clk 0:00:18.4]} 25... hxg6 {[%clk 0:01:42.1]} 26. Re1 {[%clk 0:00:16.4]}
26... a5 {[%clk 0:01:36.8]} 27. Re2 {[%clk 0:00:15]} 27... Qa1+ {[%clk
0:01:32.1]} 28. Kg2 {[%clk 0:00:15.4]} 28... Rh8 {[%clk 0:01:32.4]} 29. h4
{[%clk 0:00:15.2]} 29... Rh5 {[%clk 0:01:31.6]} 30. Bg4 {[%clk 0:00:15.2]} 30...
Re5 {[%clk 0:01:31.5]} 31. Rxe5 {[%clk 0:00:15.5]} 31... Bxe5 {[%clk 0:01:32.4]}
32. h5 {[%clk 0:00:16.1]} 32... Qb2 {[%clk 0:01:20.8]} 33. hxg6 {[%clk 0:00:16]}
33... fxg6 {[%clk 0:01:21.7]} 34. Be2 {[%clk 0:00:08.4]} 34... Bd4 {[%clk
0:01:18]} 35. Qd3 {[%clk 0:00:08.4]} 35... Bc5 {[%clk 0:01:14.9]} 36. Qe4 {[%clk
0:00:08.5]} 36... Qf6 {[%clk 0:01:12.1]} 37. f4 {[%clk 0:00:07.9]} 37... Bb6
{[%clk 0:00:58.1]} 38. Bd3 {[%clk 0:00:08.2]} 38... Bd8 {[%clk 0:00:56.4]} 39.
Kh3 {[%clk 0:00:08.5]} 39... Kf7 {[%clk 0:00:54.2]} 40. g4 {[%clk 0:00:09]}
40... Bb6 {[%clk 0:00:46.1]} 41. g5 {[%clk 0:00:09.1]} 41... Qg7 {[%clk
0:00:46.6]} 42. Qe6+ {[%clk 0:00:09.1]} 42... Kf8 {[%clk 0:00:40.5]} 43. Bxg6
{[%clk 0:00:09]} 43... Qc3+ {[%clk 0:00:38.5]} 44. Kg4 {[%clk 0:00:09.3]} 44...
Qg7 {[%clk 0:00:26]} 45. Qc8+ {[%clk 0:00:08.9]} 45... Bd8 {[%clk 0:00:26.6]}
46. Qxd8# {[%clk 0:00:09.5]} 1-0

[Event "*** SCC Grand Prix: Titled Tuesday Blitz"]
[Site "Chess.com"]
[Date "2020.09.29"]
[Round "7"]
[White "swimmerchess"]
[Black "LiemLe"]
[Result "0-1"]
[WhiteElo "2833"]
[BlackElo "2989"]
[TimeControl "180+1"]
[EndTime "11:15:55 PDT"]
[Termination "LiemLe won on time"]

1. e4 {[%clk 0:03:00.9]} 1... c6 {[%clk 0:02:59.3]} 2. Nc3 {[%clk 0:02:58]} 2...
d5 {[%clk 0:03:00.2]} 3. Nf3 {[%clk 0:02:58.5]} 3... Nf6 {[%clk 0:03:00]} 4. e5
{[%clk 0:02:58.4]} 4... Ne4 {[%clk 0:02:59.5]} 5. Ne2 {[%clk 0:02:59]} 5... Qb6
{[%clk 0:02:59]} 6. d4 {[%clk 0:02:56.7]} 6... e6 {[%clk 0:02:59.5]} 7. Ng3
{[%clk 0:02:56.4]} 7... c5 {[%clk 0:02:58.4]} 8. Bd3 {[%clk 0:02:55.7]} 8...
Nxg3 {[%clk 0:02:57.8]} 9. hxg3 {[%clk 0:02:56.6]} 9... cxd4 {[%clk 0:02:58.3]}
10. g4 {[%clk 0:02:38.2]} 10... Nc6 {[%clk 0:02:56.4]} 11. g5 {[%clk 0:02:33.6]}
11... g6 {[%clk 0:02:47.2]} 12. a3 {[%clk 0:02:21.3]} 12... Bd7 {[%clk
0:02:32.8]} 13. b4 {[%clk 0:02:18.9]} 13... a6 {[%clk 0:02:31.1]} 14. Rb1 {[%clk
0:02:17.7]} 14... Rc8 {[%clk 0:02:21]} 15. Qe2 {[%clk 0:02:06.2]} 15... Na7
{[%clk 0:02:14.1]} 16. Bb2 {[%clk 0:01:46.3]} 16... Nb5 {[%clk 0:02:13.8]} 17.
Bxb5 {[%clk 0:01:34.1]} 17... Bxb5 {[%clk 0:02:14.7]} 18. Qd2 {[%clk 0:01:34]}
18... Qc7 {[%clk 0:02:12.5]} 19. Rc1 {[%clk 0:01:26.7]} 19... Qc4 {[%clk
0:01:34.6]} 20. Nxd4 {[%clk 0:01:22.2]} 20... Qa2 {[%clk 0:01:29.9]} 21. c3
{[%clk 0:01:11.5]} 21... Be7 {[%clk 0:01:20.6]} 22. f4 {[%clk 0:01:05]} 22...
Bd3 {[%clk 0:01:14.8]} 23. Rh3 {[%clk 0:01:00.9]} 23... Bf5 {[%clk 0:00:46]} 24.
Rh4 {[%clk 0:00:51.5]} 24... Qc4 {[%clk 0:00:44.4]} 25. g4 {[%clk 0:00:49.8]}
25... Be4 {[%clk 0:00:44.5]} 26. Qh2 {[%clk 0:00:45.6]} 26... h5 {[%clk
0:00:39.7]} 27. gxh5 {[%clk 0:00:32.5]} 27... gxh5 {[%clk 0:00:40.6]} 28. Rxh5
{[%clk 0:00:28.9]} 28... Rxh5 {[%clk 0:00:40.5]} 29. Qxh5 {[%clk 0:00:29.8]}
29... Qd3 {[%clk 0:00:40.7]} 30. Qe2 {[%clk 0:00:27.5]} 30... Qg3+ {[%clk
0:00:35.5]} 31. Qf2 {[%clk 0:00:26.6]} 31... Qh3 {[%clk 0:00:35.8]} 32. Kd2
{[%clk 0:00:20.6]} 32... Qd3+ {[%clk 0:00:34.9]} 33. Ke1 {[%clk 0:00:20.6]}
33... Kd7 {[%clk 0:00:35.8]} 34. Rd1 {[%clk 0:00:17.4]} 34... Qh3 {[%clk
0:00:31.9]} 35. Ne2 {[%clk 0:00:14.1]} 35... Rh8 {[%clk 0:00:29.9]} 36. c4
{[%clk 0:00:13.1]} 36... Qb3 {[%clk 0:00:26.3]} 37. Bd4 {[%clk 0:00:05.6]} 37...
Rh1+ {[%clk 0:00:20.5]} 38. Ng1 {[%clk 0:00:05.9]} 38... Bf3 {[%clk 0:00:20.8]}
39. Rc1 {[%clk 0:00:02.8]} 39... Qd3 {[%clk 0:00:20.5]} 0-1

[Event "*** SCC Grand Prix: Titled Tuesday Blitz"]
[Site "Chess.com"]
[Date "2020.09.29"]
[Round "7"]
[White "Nikithebest"]
[Black "OK97"]
[Result "0-1"]
[WhiteElo "2422"]
[BlackElo "2774"]
[TimeControl "180+1"]
[EndTime "11:15:58 PDT"]
[Termination "OK97 won on time"]

1. e4 {[%clk 0:03:00.9]} 1... g6 {[%clk 0:03:00.1]} 2. d4 {[%clk 0:03:00.2]}
2... Bg7 {[%clk 0:03:00.8]} 3. Nf3 {[%clk 0:03:00.5]} 3... d6 {[%clk 0:03:01.3]}
4. Nc3 {[%clk 0:03:00.5]} 4... Nf6 {[%clk 0:03:01.6]} 5. Be2 {[%clk 0:03:00.2]}
5... O-O {[%clk 0:03:01.8]} 6. O-O {[%clk 0:03:00.3]} 6... c6 {[%clk 0:03:02.1]}
7. a4 {[%clk 0:03:00]} 7... Nbd7 {[%clk 0:03:02.2]} 8. e5 {[%clk 0:02:46.5]}
8... Ne8 {[%clk 0:02:57.5]} 9. Bf4 {[%clk 0:02:32.9]} 9... dxe5 {[%clk 0:02:54]}
10. dxe5 {[%clk 0:02:22]} 10... Nc7 {[%clk 0:02:54]} 11. Bg3 {[%clk 0:02:18.6]}
11... Nb6 {[%clk 0:02:47.3]} 12. a5 {[%clk 0:02:10.1]} 12... Nbd5 {[%clk
0:02:42.6]} 13. Nxd5 {[%clk 0:02:10]} 13... Nxd5 {[%clk 0:02:43.5]} 14. c4
{[%clk 0:02:09.8]} 14... Nc7 {[%clk 0:02:43.9]} 15. Qxd8 {[%clk 0:01:58.6]}
15... Rxd8 {[%clk 0:02:44.8]} 16. Rfd1 {[%clk 0:01:59]} 16... Bf5 {[%clk
0:02:37.8]} 17. Nd4 {[%clk 0:01:49]} 17... Bd7 {[%clk 0:02:23.2]} 18. b4 {[%clk
0:01:30.1]} 18... c5 {[%clk 0:02:03.3]} 19. bxc5 {[%clk 0:01:22.9]} 19... Na6
{[%clk 0:02:03.8]} 20. c6 {[%clk 0:01:21.6]} 20... bxc6 {[%clk 0:01:56]} 21. Bf3
{[%clk 0:01:20.7]} 21... Rdc8 {[%clk 0:01:48.6]} 22. Rab1 {[%clk 0:01:09.3]}
22... Rab8 {[%clk 0:01:32.5]} 23. Rxb8 {[%clk 0:01:03.5]} 23... Nxb8 {[%clk
0:01:33.4]} 24. Nb3 {[%clk 0:01:03.1]} 24... Be6 {[%clk 0:01:28.3]} 25. Be2
{[%clk 0:00:49.4]} 25... Nd7 {[%clk 0:01:17.3]} 26. Nd4 {[%clk 0:00:47]} 26...
Nxe5 {[%clk 0:01:12.6]} 27. Nxe6 {[%clk 0:00:46.1]} 27... fxe6 {[%clk
0:01:13.5]} 28. Rb1 {[%clk 0:00:40.7]} 28... Rd8 {[%clk 0:01:01.1]} 29. Rb7
{[%clk 0:00:35.3]} 29... Rd2 {[%clk 0:00:43.2]} 30. Bf1 {[%clk 0:00:16.4]} 30...
Rd1 {[%clk 0:00:38.7]} 31. Bxe5 {[%clk 0:00:15.7]} 31... Bxe5 {[%clk 0:00:37.7]}
32. Rxa7 {[%clk 0:00:16]} 32... Kf7 {[%clk 0:00:33]} 33. g3 {[%clk 0:00:16]}
33... Bd4 {[%clk 0:00:30.9]} 34. Rc7 {[%clk 0:00:05.4]} 34... Ra1 {[%clk
0:00:19.5]} 35. Rxc6 {[%clk 0:00:04.2]} 35... Ra2 {[%clk 0:00:15.7]} 0-1

[Event "*** SCC Grand Prix: Titled Tuesday Blitz"]
[Site "Chess.com"]
[Date "2020.09.29"]
[Round "7"]
[White "Riptide27"]
[Black "Tenamu"]
[Result "1-0"]
[WhiteElo "2520"]
[BlackElo "2367"]
[TimeControl "180+1"]
[EndTime "11:15:58 PDT"]
[Termination "Riptide27 won by resignation"]

1. d4 {[%clk 0:03:00.9]} 1... Nf6 {[%clk 0:02:59.3]} 2. c4 {[%clk 0:03:00.9]}
2... e6 {[%clk 0:02:59.4]} 3. Nc3 {[%clk 0:03:00.8]} 3... c5 {[%clk 0:02:59.8]}
4. d5 {[%clk 0:03:00.2]} 4... exd5 {[%clk 0:03:00.7]} 5. cxd5 {[%clk 0:03:00.9]}
5... d6 {[%clk 0:03:01.3]} 6. e4 {[%clk 0:03:01.5]} 6... g6 {[%clk 0:03:01.8]}
7. f4 {[%clk 0:03:02]} 7... Bg7 {[%clk 0:03:02.3]} 8. Bb5+ {[%clk 0:03:02.5]}
8... Nfd7 {[%clk 0:03:02.7]} 9. a4 {[%clk 0:03:01.5]} 9... O-O {[%clk
0:03:02.8]} 10. Nf3 {[%clk 0:03:01.9]} 10... a6 {[%clk 0:03:02.8]} 11. Bc4
{[%clk 0:02:55.3]} 11... Re8 {[%clk 0:02:49.2]} 12. O-O {[%clk 0:02:55]} 12...
Bxc3 {[%clk 0:02:47.3]} 13. bxc3 {[%clk 0:02:55.9]} 13... Rxe4 {[%clk
0:02:47.4]} 14. Bd3 {[%clk 0:02:49.9]} 14... Nf6 {[%clk 0:02:46.7]} 15. Bxe4
{[%clk 0:02:45.9]} 15... Nxe4 {[%clk 0:02:47.6]} 16. c4 {[%clk 0:02:40.7]} 16...
Qf6 {[%clk 0:02:42.1]} 17. Ra3 {[%clk 0:02:35.1]} 17... Bf5 {[%clk 0:02:30.4]}
18. Qb3 {[%clk 0:02:27.1]} 18... Nd7 {[%clk 0:02:08.8]} 19. Bb2 {[%clk
0:02:19.4]} 19... Qd8 {[%clk 0:02:01.7]} 20. Ba1 {[%clk 0:02:18.4]} 20... Rb8
{[%clk 0:01:52.9]} 21. Qb2 {[%clk 0:02:09]} 21... f6 {[%clk 0:01:49.7]} 22. Re1
{[%clk 0:01:59.8]} 22... Qa5 {[%clk 0:01:44.7]} 23. Rae3 {[%clk 0:01:41]} 23...
Qxa4 {[%clk 0:01:04.7]} 24. Rxe4 {[%clk 0:01:21.8]} 24... Bxe4 {[%clk
0:01:05.6]} 25. Rxe4 {[%clk 0:01:22.2]} 25... Kf7 {[%clk 0:00:59.4]} 26. Ng5+
{[%clk 0:01:14.3]} 26... Kg8 {[%clk 0:00:59]} 27. Re7 {[%clk 0:01:04.3]} 27...
Qd1+ {[%clk 0:00:55.6]} 28. Kf2 {[%clk 0:01:03.9]} 28... Rd8 {[%clk 0:00:25.5]}
29. Ne6 {[%clk 0:00:42.8]} 29... Qg4 {[%clk 0:00:13.8]} 30. g3 {[%clk
0:00:25.6]} 30... Rb8 {[%clk 0:00:10.6]} 31. Rxd7 {[%clk 0:00:24.5]} 31... Qh3
{[%clk 0:00:10.7]} 32. Kg1 {[%clk 0:00:19.4]} 32... Qg4 {[%clk 0:00:09.2]} 33.
Qd2 {[%clk 0:00:14.2]} 33... Qf3 {[%clk 0:00:08.6]} 34. Bxf6 {[%clk 0:00:10.4]}
34... Re8 {[%clk 0:00:05.7]} 35. Rg7+ {[%clk 0:00:10.1]} 1-0